Cogmind - Beta 13 @@@ ROGUE MODE // 2024.04.27 @ 01:35:11 Player: lav Result: Destroyed by G-34 Mercenary with Small Laser Performance ------------- Evolutions (0) 0 Regions Visited (1) 200 Robots Destroyed (23) 115 Value Destroyed (369) 369 Prototype IDs (2) 40 Alien Tech Used (0) 0 Bonus (8) 8 TOTAL SCORE: 732 Bonus ------- High Alert Combat Kills 8 Cogmind --------- Core Integrity 0/250 Matter 300/300 Energy 66/100 System Corruption 0% Temperature Cool (6) Movement Walking (120) Location -10/Materials Parts ------- > --- POWER (1) -------- (None) > --- PROPULSION (2) --- Aluminum Leg Aluminum Leg > --- UTILITY (2) ------ Medium Storage Unit Power Shielding > --- WEAPON (2) ------- EM Pulse Gun Beam Cannon > --- INVENTORY (10) --- Ion Engine Aluminum Leg Hover Unit High-capacity Matter Pod (135) Sensor Array Improved Terrain Scanner Power Shielding Light Armor Plating Light Assault Rifle Peak State ------------ > --- POWER ------------ Light Ion Engine > --- PROPULSION ------- Hover Unit Hover Unit > --- UTILITY ---------- Small Storage Unit Hacking Suite > --- WEAPON ----------- EM Pulse Gun Medium Laser > --- INVENTORY -------- Aluminum Leg Aluminum Leg Improved Terrain Scanner Improved Terrain Scanner Light Armor Plating Beam Cannon Assault Rifle Light Assault Rifle [Rating: 10] Favorites ----------- Power Light Ion Engine Engine Light Ion Engine Propulsion Compact Wheel Leg Aluminum Leg Wheel Compact Wheel Hover Unit Hover Unit Utility Small Storage Unit Device Improved Terrain Scanner Storage Small Storage Unit Hackware Hacking Suite Protection Light Armor Plating Weapon EM Pulse Gun Energy Gun EM Pulse Gun Energy Cannon Beam Cannon Ballistic Gun Light Assault Rifle Build | -11 -10 ------- Run | Yrd Mat Slots Evolved . | . . Power . | . . Propulsion . | . . Utility . | . . Weapon . | . . Parts Attached 30 | 7 23 Power 4 | 1 3 Engine 4 | 1 3 Core . | . . Reactor . | . . Propulsion 10 | 2 8 Treads . | . . Leg 3 | . 3 Wheel 5 | 2 3 Hover 2 | . 2 Flight . | . . Utility 9 | 2 7 Device 4 | 1 3 Storage 2 | 1 1 Processor . | . . Hackware 1 | . 1 Protection 2 | . 2 Artifact . | . . Weapon 7 | 2 5 Energy Gun 3 | 1 2 Energy Cannon 1 | . 1 Ballistic Gun 3 | 1 2 Ballistic Cannon . | . . Launcher . | . . Special Weapon . | . . Impact Weapon . | . . Slashing Weapon . | . . Piercing Weapon . | . . Special Melee Weapon . | . . Unidentified Prototypes . | . . Parts Lost 3 | . 3 Power 1 | . 1 Propulsion 1 | . 1 Utility 1 | . 1 Weapon . | . . Highest Loss Streak 3 | . 3 To Critical Strikes . | . . Average Slot Usage (%) 95 | . 95 Engine 12 | . 12 Leg 3 | . 3 Wheel 12 | . 12 Hover 10 | . 10 Device 3 | . 3 Storage 14 | . 14 Hackware 5 | . 5 Protection 4 | . 4 Energy Gun 18 | . 18 Energy Cannon 1 | . 1 Ballistic Gun 7 | . 7 Naked Turns . | . . Heaviest Build 21 | 13 21 Greatest Support 32 | 32 32 Greatest Overweight (x) 4 | 1 4 Average Overweight (x) . | . . Largest Inventory Capacity 10 | 8 10 Average Capacity 8 | 7 8 Most Carried 10 | 7 10 Average Carried 6 | 4 7 Final Capacity 10 | 8 10 Final Carried 9 | 5 9 Class Distribution -------------------- 64% | Mutant 35% | Scavenger-Mutant Dominant Class ---------------- Mutant | -10/Materials Resources | -11 -10 ----------- Run | Yrd Mat Matter Collected 700 | 306 394 Remotely . | . . Salvage Created 605 | 159 446 Parts 48 | 10 38 Haulers Intercepted 1 | . 1 Recyclers Shooed . | . . Parts Field Recycled . | . . Retrieved Matter . | . . Parts Self-Destructed . | . . Prevented . | . . Kills | -11 -10 ------- Run | Yrd Mat Combat Hostiles Destroyed 12 | . 12 Guns 3 | . 3 Cannons 3 | . 3 AOE 6 | . 6 Classes Destroyed 9 | 3 6 Worker 2 | 1 1 Builder 1 | . 1 Tunneler 2 | 2 . Hauler 1 | . 1 Recycler 1 | 1 . Operator 1 | . 1 Watcher 3 | . 3 Swarmer 8 | . 8 Grunt 4 | . 4 Best Kill Streak 6 | 3 6 Combat Bots Only 5 | . 5 Max Kills in Single Turn 3 | 1 3 Gunslinging . | . . Exploded 2 | . 2 Melee . | . . Uniques/NPCs Destroyed . | . . Combat | -11 -10 -------- Run | Yrd Mat Hostile Shots Fired 89 | . 89 Missed 28 | . 28 Damage Taken 626 | . 626 Core 260 | . 260 Absorbed by Shields . | . . Redirected to Shielding 5 | . 5 Core Remaining (%) 100 | 100 . Volleys Fired 52 | 12 40 Largest 2 | 2 2 Hottest 100 | 70 100 Shots Fired 104 | 24 80 Gun 98 | 24 74 Cannon 6 | . 6 Launcher . | . . Special . | . . Kinetic 36 | 12 24 Thermal 38 | 12 26 Explosive . | . . Electromagnetic 30 | . 30 Robot Hit Streak 7 | 3 7 Robot Miss Streak 4 | 4 4 Penetration Max . | . . Secondary Targets . | . . Shots Hit Robots 50 | 12 38 Core Hits 27 | 5 22 Critical Kills . | . . Critical Parts Destroyed . | . . Critical Strikes 1 | . 1 Burn 1 | . 1 Melee Attacks . | . . Impact . | . . Slashing . | . . Piercing . | . . Sneak Attacks . | . . Combat Hostiles . | . . Follow-up Attacks . | . . Damage Inflicted 1115 | 149 966 Guns 606 | 149 457 Cannons 69 | . 69 Explosions 440 | . 440 Melee . | . . Ramming . | . . Kinetic 238 | 74 164 Thermal 683 | 75 608 Explosive . | . . Electromagnetic 194 | . 194 Impact . | . . Slashing . | . . Piercing . | . . Highest Corruption . | . . Average Corruption . | . . Corruption Purged . | . . Corruption Blocked . | . . Overload Shots . | . . Overflow Damage 42 | . 42 Projectiles 9 | . 9 Explosions 33 | . 33 Melee . | . . Knockbacks . | . . Impact . | . . Kinetic . | . . Secondary . | . . Self-Inflicted Damage 124 | . 124 Shots 2 | . 2 Rammed . | . . Targets Rammed . | . . Kicked . | . . Crushed . | . . Highest Temperature 100 | 36 100 Average Temperature 29 | 14 33 Received Heat Transfer 36 | . 36 Siege Activations . | . . Robots Corrupted . | . . Combat Hostiles . | . . Parts Fried . | . . Impact Corruptions . | . . Robots Melted . | . . Combat Hostiles . | . . Parts Melted . | . . Heat Transferred 1040 | 222 818 Parts Sabotaged . | . . Parts Stolen . | . . Parts Stripped . | . . Power Chain Reactions 2 | . 2 Alert | -11 -10 ------- Run | Yrd Mat Peak Influence 455 | 20 455 Initial 13 | . 13 Average 184 | 5 223 Maximum Alert Level 2 | . 2 Low Security (%) 51 | 100 41 Level 1 43 | . 52 Level 2 5 | . 6 Level 3 . | . . Level 4 . | . . Level 5 . | . . High Security . | . . Max Security . | . . Squads Dispatched 4 | . 4 Investigation 1 | . 1 Extermination . | . . Reinforcement 3 | . 3 Assault . | . . Garrison . | . . Intercept . | . . Searches Triggered . | . . Construction Impeded . | . . Haulers Reinforced . | . . Active Scanning Responses . | . . Cargo Convoy Interrupts . | . . Stealth | -11 -10 --------- Run | Yrd Mat Distress Signals . | . . Communications Jammed . | . . Distress Signals . | . . Times Spotted 24 | . 24 Peak Tracking Total 5 | . 5 Tactical Retreats 1 | . 1 Traps | -11 -10 ------- Run | Yrd Mat Traps Triggered 3 | . 3 Indirectly . | . . Trap Hack Attempts . | . . Triggered . | . . Disarmed . | . . Reprogrammed . | . . Reused . | . . Traps Extracted . | . . Installed . | . . Triggered . | . . Machines | -11 -10 ---------- Run | Yrd Mat Machines Disabled 6 | . 6 Max in Single Turn 5 | . 5 Machines Repaired . | . . Machines Dismantled . | . . Machines Sabotaged . | . . Overloaded Fab Kills . | . . Hacking | -11 -10 --------- Run | Yrd Mat Machines Accessed 1 | . 1 Terminals 1 | . 1 Fabricators . | . . Repair Stations . | . . Recycling Units . | . . Scanalyzers . | . . Garrison Access . | . . Total Hacks 4 | . 4 Successful 2 | . 2 Failed 2 | . 2 Catastrophic 1 | . 1 Database Lockouts . | . . Manual . | . . Terminals 4 | . 4 Fabricators . | . . Repair Stations . | . . Recycling Units . | . . Scanalyzers . | . . Garrison Access . | . . Terminal Hacks 2 | . 2 Prototype ID Bank 1 | . 1 Hauler Manifests 1 | . 1 Fabricator Hacks . | . . Repair Station Hacks . | . . Recycling Unit Hacks . | . . Scanalyzer . | . . Garrison Access Hacks . | . . Unauthorized Hacks . | . . Terminals . | . . Fabricators . | . . Repair Stations . | . . Recycling Units . | . . Scanalyzers . | . . Garrison Access . | . . Data Cores Recovered . | . . Used . | . . Hacking Detections 1 | . 1 Full Trace Events 1 | . 1 Feedback Events . | . . Feedback Blocked . | . . Robot Schematics Acquired . | . . Robots Built . | . . Authchips . | . . Time . | . . Total Robot Build Rating . | . . Part Schematics Acquired . | . . Parts Built . | . . Authchips . | . . Time . | . . Total Part Build Rating . | . . Parts Repaired . | . . Time . | . . Parts Recycled . | . . Recycled Matter . | . . Retrieved Matter . | . . Retrieved Components . | . . Parts Scanalyzed . | . . Part Schematics Acquired . | . . Parts Damaged . | . . Bothacking | -11 -10 ------------ Run | Yrd Mat Used RIF Installer . | . . Robots Hacked . | . . Non-combat . | . . Combat . | . . Robot Hacks Applied . | . . Relay Couplers Released . | . . Fabnet Peak Effective % . | . . Robots Rewired . | . . Allies Hacked . | . . Hacks Repelled . | . . Allies | -11 -10 -------- Run | Yrd Mat Total Allies . | . . Largest Group . | . . Highest-Rated Group . | . . Highest-Rated Ally . | . . Total Orders . | . . Ally Attacks . | . . Total Damage . | . . Kills . | . . Allies Corrupted . | . . Allies Melted . | . . Intel | -11 -10 ------- Run | Yrd Mat Robot Analysis Total . | . . Derelict Logs Recovered . | . . Drone Launches . | . . Drone Recoveries . | . . Exploration | -11 -10 ------------- Run | Yrd Mat Turns Passed 627 | 113 514 Spaces Moved 382 | 64 318 Core 23 | 22 1 Treads . | . . Legs 28 | . 28 Wheels 196 | 42 154 Hover 135 | . 135 Flight . | . . Fastest Speed 50 | 50 56 Average Speed 102 | 91 104 Slowest Speed 250 | 100 250 Overloaded Moves . | . . Propulsion Burnouts . | . . Robots Hopped . | . . Cave-ins Triggered . | . . Exploration Rate (%) 21 | 4 38 Regions Visited 1 Branch Regions . Pre-discovered Areas . | . . Known Exits Taken . | . . Unknown Exits Taken 1 | 1 . Scrap Searched . | . . Spaces Dug . | . . Terrain Destroyed 24 | . 24 Melee . | . . Projectile . | . . AOE 24 | . 24 Terrain Rammed . | . . Walls Destroyed . | . . Machines Disabled . | . . Actions | -11 -10 --------- Run | Yrd Mat Total 513 | 93 420 Wait 14 | . 14 Move 381 | 63 318 Hop . | . . Pick Up 25 | 11 14 Fast Attach 6 | 1 5 Attach 11 | 6 5 Detach . | . . Swap 13 | . 13 Drop 11 | . 11 Fire 52 | 12 40 Melee . | . . Ram . | . . Kick . | . . Crush . | . . Escape Stasis . | . . Rewire . | . . Trap . | . . Miscellaneous . | . . Route ------- -11/Scrapyard -10/Materials History --------- Turn | Location | Event 22 | -11/Scrapyard | Discovered new exit (range 15) 114 | -11/Scrapyard | Entered Materials 301 | -10/Materials | Build established: Mutant 306 | -10/Materials | Core integrity fell below 50% 575 | -10/Materials | Core integrity fell below 20% 606 | -10/Materials | Lost 3 parts (1p1n1u) 628 | -10/Materials | Destroyed by G-34 Mercenary with Small Laser Last Messages --------------- 00602_ R-06 Scavenger collects Aluminum Leg. 00602_ Acquired Ion Engine. 00603_ G-34 Mercenary destroyed. 00604_ O-16 Technician: "IFF HANDSHAKE FAILED. SECURING TERMINAL." 00604_ O-16 Technician uses terminal to summon reinforcements. 00604_ ALERT: Hostiles spotted, dispatching reinforcements to Terminal M005. 00604_ O-16 Technician locks terminal. 00606_ R-06 Scavenger collects Sml. Laser. 00609_ Acquired 49 matter. 00611_ Acquired Ion Engine. 00614_ Acquired Aluminum Leg. 00617_ Door malfunctions. 00617_ W-16 Scout destroyed. 00622_ Acquired 17 matter. 00624_ K-01 Serf collects debris. 00625_ Acquired Sensor Array. 00626_ Dropped Ion Engine. Map ----- +----------------------------------------------------+ | | | | | | | | | | | | | | | | | | | | | | | | | | | | | | | | | | | | | | | ?????????????????????????????????????????????????? | | ?????????????????????????????????????????????????? | | ?????????????????????????#######?????????????????? | | ???????????######T########! #?????????????????? | | ?????????? #?????????????????? | | ?????????? g To +?????????????????? | | ?????????? @ #?????????????????? | | ?????????????????######### #?????????????????? | | ??????????????????#########* ###????????????????? | | ??????????????????# # = # ?????????????????? | | ??????????????????# # # ?????????????????? | | ??????????????????# / [+??????????????????? | | ??????????????????# # #??????????????????? | | ??????????????????# # =#??????????????????? | | ???????????? ?????# " #??????????????????? | | ???????????# ?????# ! " #??????????????????? | | ???????????# ???? # " #??????????????????? | | #??????????# ???? # # #??????????????????? | | #??????????# ??? # # #??????????????????? | | #??????????# ??? ######### #??????????????????? | | #??????????# """ ######### #??????????????????? | | #??????????# """ # + +??????????????????? | | #??????????# # """ # # ?????????????????? | | #??????????#! """ # """ # # ?????????????????? | | #??????????# """ # """ + #? ????????????????? | | #??????????# """ # ### #? "???????????????? | | #??????????#! == # #?# #??"???????????????? | | ############"""+"## #?# #?? ??????????????? | | !=% * [ ##+######## #??????????????????? | | [= #?? #??????????????????? | | = #?? #??????????????????? | +----------------------------------------------------+ Best States ------------- Heat Dissipation 25 Energy Generation 10 Energy Capacity 250 Matter Stores 300 Matter Capacity 300 Sight Range 16 Terrain Scan Range 16 Terrain Scan Density 10 Armor Coverage 150 Power Shielding 33 Evasion (%) 53 Offensive Hacking 10 Item Schematics ----------------- None Robot Schematics ------------------ None Fabricated ------------ Nothing Alien Tech Used ----------------- None Achievements -------------- None Challenges ------------ None Game ------ Seed StorageRocketSlayer Manual? 0 Play Time 00:11:29 Cumulative 1.8 hours Start 2024.04.27 @ 01:23:52 End 2024.04.27 @ 01:35:11 Sessions 1 Manual Loads 0 Difficulty Rogue Special Mode None Game No. 4 Rogue 4 Adventurer 0 Explorer 0 Win Type - Total 0 Types 0/0/0/0/0/0/0/0/0 Lore% 2 Gallery% 7 Achievement% 5 Wizard Run 0 Options --------- Layout 1 ASCII 0 Keyboard 0 Movement Mouse Keybinds 0 Fullscreen 1 Font 32/SmallcapsGlow Map View 50x35 Zoom Use 0% Tactical HUD 1 Map Filters NONE Filters NONE Steam 1 RUN: 3bbc23f4-308e-4dd9-a295-fa7201977cb6